[Event "*** Titled Tuesday Blitz"]
[Site "Chess.com"]
[Date "2020.04.28"]
[Round "4"]
[White "Guachiney"]
[Black "Sadykov_Ramil"]
[Result "1-0"]
[WhiteElo "2833"]
[BlackElo "2528"]
[TimeControl "180+1"]
[EndTime "10:40:39 PDT"]
[Termination "Guachiney won by checkmate"]

1. e4 {[%clk 0:03:00.9]} 1... c5 {[%clk 0:02:55.3]} 2. Nf3 {[%clk 0:03:00.8]}
2... Nc6 {[%clk 0:02:53.6]} 3. Bb5 {[%clk 0:02:59.8]} 3... g6 {[%clk 0:02:51.8]}
4. Bxc6 {[%clk 0:02:59.4]} 4... dxc6 {[%clk 0:02:52.1]} 5. d3 {[%clk 0:02:59]}
5... Bg7 {[%clk 0:02:52.3]} 6. h3 {[%clk 0:02:59.1]} 6... Nf6 {[%clk 0:02:52.2]}
7. Nc3 {[%clk 0:02:58.8]} 7... Nd7 {[%clk 0:02:47.2]} 8. Be3 {[%clk 0:02:58.4]}
8... e5 {[%clk 0:02:45.7]} 9. Qd2 {[%clk 0:02:58.3]} 9... h6 {[%clk 0:02:43.2]}
10. O-O {[%clk 0:02:57.9]} 10... b6 {[%clk 0:02:37.9]} 11. Nh2 {[%clk
0:02:57.6]} 11... Nf8 {[%clk 0:02:37.3]} 12. f4 {[%clk 0:02:57.4]} 12... exf4
{[%clk 0:02:36.4]} 13. Bxf4 {[%clk 0:02:58.3]} 13... g5 {[%clk 0:02:24.9]} 14.
Bg3 {[%clk 0:02:53.7]} 14... Ng6 {[%clk 0:02:20]} 15. e5 {[%clk 0:02:44.1]}
15... O-O {[%clk 0:02:15.2]} 16. Rae1 {[%clk 0:02:39.4]} 16... f5 {[%clk
0:02:01.6]} 17. exf6 {[%clk 0:02:37.9]} 17... Rxf6 {[%clk 0:01:51.8]} 18. Rxf6
{[%clk 0:02:01.9]} 18... Bxf6 {[%clk 0:01:48.1]} 19. Ne4 {[%clk 0:02:01.6]}
19... Bg7 {[%clk 0:01:39.4]} 20. Nd6 {[%clk 0:01:40.1]} 20... Bd7 {[%clk
0:01:36.2]} 21. Ng4 {[%clk 0:01:31.3]} 21... Bxg4 {[%clk 0:00:55.3]} 22. Re8+
{[%clk 0:01:08.1]} 22... Qxe8 {[%clk 0:00:47.6]} 23. Nxe8 {[%clk 0:01:09]} 23...
Rxe8 {[%clk 0:00:21.4]} 24. hxg4 {[%clk 0:01:07.5]} 24... Be5 {[%clk 0:00:16.5]}
25. Bxe5 {[%clk 0:01:03.2]} 25... Rxe5 {[%clk 0:00:17.4]} 26. g3 {[%clk
0:01:02.2]} 26... Kf7 {[%clk 0:00:14.3]} 27. Qc3 {[%clk 0:00:57.7]} 27... Rd5
{[%clk 0:00:11.7]} 28. Qa3 {[%clk 0:00:54.1]} 28... Rd7 {[%clk 0:00:10.8]} 29.
Qb3+ {[%clk 0:00:52.4]} 29... Kf6 {[%clk 0:00:09.6]} 30. Qg8 {[%clk 0:00:50.1]}
30... Ne5 {[%clk 0:00:08.5]} 31. Qf8+ {[%clk 0:00:49.6]} 31... Ke6 {[%clk
0:00:06.9]} 32. Qf5+ {[%clk 0:00:48.9]} 32... Kd6 {[%clk 0:00:02.3]} 33. Qf6+
{[%clk 0:00:42.8]} 33... Kd5 {[%clk 0:00:02.7]} 34. Qxh6 {[%clk 0:00:37.8]}
34... c4 {[%clk 0:00:03.1]} 35. Qxg5 {[%clk 0:00:29.1]} 35... cxd3 {[%clk
0:00:02.1]} 36. cxd3 {[%clk 0:00:30]} 36... Kd4 {[%clk 0:00:01.9]} 37. Qf4+
{[%clk 0:00:28.5]} 37... Kd5 {[%clk 0:00:01.9]} 38. Qe4+ {[%clk 0:00:28.3]}
38... Kd6 {[%clk 0:00:01.4]} 39. d4 {[%clk 0:00:22.8]} 39... Nc4 {[%clk
0:00:02.1]} 40. b3 {[%clk 0:00:19.2]} 40... Na5 {[%clk 0:00:01.8]} 41. Qe5#
{[%clk 0:00:18.9]} 1-0

[Event "*** Titled Tuesday Blitz"]
[Site "Chess.com"]
[Date "2020.04.28"]
[Round "4"]
[White "Feegus"]
[Black "northridgehawk"]
[Result "0-1"]
[WhiteElo "2464"]
[BlackElo "2316"]
[TimeControl "180+1"]
[EndTime "10:40:39 PDT"]
[Termination "northridgehawk won by resignation"]

1. Nf3 {[%clk 0:03:00.9]} 1... Nf6 {[%clk 0:02:47.4]} 2. g3 {[%clk 0:02:49.2]}
2... g6 {[%clk 0:02:46.5]} 3. Bg2 {[%clk 0:02:48.2]} 3... Bg7 {[%clk 0:02:47.4]}
4. O-O {[%clk 0:02:47.3]} 4... O-O {[%clk 0:02:47.2]} 5. c4 {[%clk 0:02:48.2]}
5... d5 {[%clk 0:02:48.1]} 6. c5 {[%clk 0:02:48.1]} 6... Nbd7 {[%clk 0:02:34.1]}
7. d4 {[%clk 0:02:47.7]} 7... c6 {[%clk 0:02:33.4]} 8. Nc3 {[%clk 0:02:47.4]}
8... Re8 {[%clk 0:02:33.8]} 9. b4 {[%clk 0:02:41.8]} 9... e5 {[%clk 0:02:29.8]}
10. e3 {[%clk 0:02:41.3]} 10... exd4 {[%clk 0:02:25.9]} 11. exd4 {[%clk
0:02:40.7]} 11... Ne4 {[%clk 0:02:25.6]} 12. Bb2 {[%clk 0:02:33.7]} 12... f5
{[%clk 0:02:23.1]} 13. a4 {[%clk 0:02:31.2]} 13... a5 {[%clk 0:02:23.4]} 14. b5
{[%clk 0:02:30.7]} 14... Ndxc5 {[%clk 0:02:22.6]} 15. Ne2 {[%clk 0:01:47.6]}
15... Ne6 {[%clk 0:02:16.6]} 16. Ne5 {[%clk 0:01:47.3]} 16... Bd7 {[%clk
0:02:16.7]} 17. Qd3 {[%clk 0:01:29.9]} 17... N6c5 {[%clk 0:01:56.2]} 18. Qd1
{[%clk 0:01:26.2]} 18... Ne6 {[%clk 0:01:46.6]} 19. bxc6 {[%clk 0:01:22.8]}
19... bxc6 {[%clk 0:01:46.2]} 20. Rc1 {[%clk 0:01:20]} 20... Ra6 {[%clk
0:01:43.1]} 21. Qd3 {[%clk 0:01:14.7]} 21... Rb6 {[%clk 0:01:43.1]} 22. Ba3
{[%clk 0:01:14.9]} 22... Nxd4 {[%clk 0:01:29.3]} 23. Nxd4 {[%clk 0:00:44.6]}
23... Bxe5 {[%clk 0:01:26.3]} 24. Nf3 {[%clk 0:00:39]} 24... Bg7 {[%clk
0:01:25]} 25. Rfd1 {[%clk 0:00:36.4]} 25... Qb8 {[%clk 0:01:20.8]} 26. Bc5
{[%clk 0:00:32.3]} 26... Rb3 {[%clk 0:01:04.2]} 27. Qa6 {[%clk 0:00:32.1]} 27...
Nxc5 {[%clk 0:00:52.4]} 28. Rxc5 {[%clk 0:00:31.4]} 28... Qb4 {[%clk 0:00:48.9]}
29. Qxa5 {[%clk 0:00:30.3]} 29... Qe4 {[%clk 0:00:47.8]} 30. Ng5 {[%clk
0:00:23]} 30... Qe2 {[%clk 0:00:47.6]} 31. Rf1 {[%clk 0:00:22.2]} 31... Bd4
{[%clk 0:00:46.1]} 32. Rcc1 {[%clk 0:00:18]} 32... Rb2 {[%clk 0:00:46.2]} 33.
Nh3 {[%clk 0:00:14.7]} 33... f4 {[%clk 0:00:44]} 34. Rce1 {[%clk 0:00:14.9]}
34... f3 {[%clk 0:00:35.2]} 35. Rxe2 {[%clk 0:00:13.8]} 35... fxe2 {[%clk
0:00:36.1]} 36. Re1 {[%clk 0:00:13.7]} 36... Bxh3 {[%clk 0:00:36.1]} 37. Bxh3
{[%clk 0:00:13.3]} 37... Rf8 {[%clk 0:00:34.3]} 38. Be6+ {[%clk 0:00:07.1]}
38... Kh8 {[%clk 0:00:34.2]} 39. Rxe2 {[%clk 0:00:04.1]} 39... Rxe2 {[%clk
0:00:35.1]} 40. Qc7 {[%clk 0:00:03.6]} 40... Bxf2+ {[%clk 0:00:34]} 41. Kg2
{[%clk 0:00:01.7]} 41... Bb6+ {[%clk 0:00:33.8]} 0-1

[Event "*** Titled Tuesday Blitz"]
[Site "Chess.com"]
[Date "2020.04.28"]
[Round "4"]
[White "MathiasWomacka"]
[Black "Susal_De_Silva"]
[Result "1/2-1/2"]
[WhiteElo "2446"]
[BlackElo "2265"]
[TimeControl "180+1"]
[EndTime "10:40:39 PDT"]
[Termination "Game drawn by repetition"]

1. e4 {[%clk 0:02:59]} 1... e5 {[%clk 0:02:59.9]} 2. Nf3 {[%clk 0:02:58.5]} 2...
Nc6 {[%clk 0:03:00.1]} 3. Bc4 {[%clk 0:02:56.5]} 3... Nf6 {[%clk 0:02:59.9]} 4.
d3 {[%clk 0:02:56.2]} 4... Bc5 {[%clk 0:02:59.7]} 5. O-O {[%clk 0:02:55.7]} 5...
O-O {[%clk 0:02:59.7]} 6. h3 {[%clk 0:02:54]} 6... d5 {[%clk 0:02:55]} 7. exd5
{[%clk 0:02:54.9]} 7... Nxd5 {[%clk 0:02:55.9]} 8. Re1 {[%clk 0:02:54.6]} 8...
Nb6 {[%clk 0:02:48.2]} 9. Bb3 {[%clk 0:02:53.8]} 9... Bd6 {[%clk 0:02:46.1]} 10.
a4 {[%clk 0:02:51]} 10... a5 {[%clk 0:02:44.9]} 11. Nc3 {[%clk 0:02:50.2]} 11...
h6 {[%clk 0:02:33.5]} 12. Nb5 {[%clk 0:02:45.9]} 12... Re8 {[%clk 0:02:28.8]}
13. Be3 {[%clk 0:02:40]} 13... Bf5 {[%clk 0:02:10.9]} 14. d4 {[%clk 0:02:30.9]}
14... e4 {[%clk 0:01:56.1]} 15. Nd2 {[%clk 0:02:26.8]} 15... Nb4 {[%clk
0:01:39]} 16. Qh5 {[%clk 0:02:00.3]} 16... Be6 {[%clk 0:01:33.9]} 17. d5 {[%clk
0:01:51.3]} 17... N6xd5 {[%clk 0:01:23]} 18. Nxd6 {[%clk 0:01:38.6]} 18... cxd6
{[%clk 0:01:15.9]} 19. Nxe4 {[%clk 0:01:07.1]} 19... Nxe3 {[%clk 0:01:15.1]} 20.
Rxe3 {[%clk 0:01:04.5]} 20... Bxb3 {[%clk 0:01:14.6]} 21. Rae1 {[%clk
0:00:51.6]} 21... Bxc2 {[%clk 0:00:58.4]} 22. Nf6+ {[%clk 0:00:49.7]} 22... Qxf6
{[%clk 0:00:58.3]} 23. Rxe8+ {[%clk 0:00:49.2]} 23... Rxe8 {[%clk 0:00:59.2]}
24. Rxe8+ {[%clk 0:00:48.8]} 24... Kh7 {[%clk 0:00:59.6]} 25. Rb8 {[%clk
0:00:38.2]} 25... Bg6 {[%clk 0:00:55.1]} 26. Qb5 {[%clk 0:00:36.4]} 26... Nd3
{[%clk 0:00:52.6]} 27. Qb6 {[%clk 0:00:33.7]} 27... d5 {[%clk 0:00:42.5]} 28.
Rxb7 {[%clk 0:00:32.6]} 28... d4 {[%clk 0:00:42.7]} 29. Qxf6 {[%clk 0:00:30.9]}
29... gxf6 {[%clk 0:00:42.1]} 30. Rd7 {[%clk 0:00:31.1]} 30... Nxb2 {[%clk
0:00:39.4]} 31. Rxd4 {[%clk 0:00:31.6]} 31... Kg7 {[%clk 0:00:23.8]} 32. Kf1
{[%clk 0:00:31.7]} 32... Kf8 {[%clk 0:00:12.5]} 33. Ke2 {[%clk 0:00:30.9]} 33...
Ke7 {[%clk 0:00:13]} 34. Kd2 {[%clk 0:00:30.9]} 34... Ke6 {[%clk 0:00:12.1]} 35.
Kc3 {[%clk 0:00:30.9]} 35... Nd3 {[%clk 0:00:09.7]} 36. Rxd3 {[%clk 0:00:27.2]}
36... Bxd3 {[%clk 0:00:10.6]} 37. Kxd3 {[%clk 0:00:28.1]} 37... Kd5 {[%clk
0:00:10.9]} 38. g4 {[%clk 0:00:28.3]} 38... Ke5 {[%clk 0:00:10.4]} 39. Ke3
{[%clk 0:00:28.3]} 39... Kd5 {[%clk 0:00:10.7]} 40. Kd3 {[%clk 0:00:28.1]} 40...
Ke5 {[%clk 0:00:10.6]} 41. Ke3 {[%clk 0:00:28.1]} 41... Kd5 {[%clk 0:00:10.9]}
42. Kd3 {[%clk 0:00:25.8]} 1/2-1/2

[Event "*** Titled Tuesday Blitz"]
[Site "Chess.com"]
[Date "2020.04.28"]
[Round "4"]
[White "floplover"]
[Black "martinique24"]
[Result "0-1"]
[WhiteElo "2240"]
[BlackElo "2442"]
[TimeControl "180+1"]
[EndTime "10:40:39 PDT"]
[Termination "martinique24 won by resignation"]

1. d4 {[%clk 0:03:00.9]} 1... Nf6 {[%clk 0:02:58.3]} 2. c4 {[%clk 0:03:01]} 2...
g6 {[%clk 0:02:57.9]} 3. Nc3 {[%clk 0:03:01.2]} 3... d5 {[%clk 0:02:57.2]} 4.
cxd5 {[%clk 0:03:02.1]} 4... Nxd5 {[%clk 0:02:56.9]} 5. e4 {[%clk 0:03:02.7]}
5... Nxc3 {[%clk 0:02:56.8]} 6. bxc3 {[%clk 0:03:03.6]} 6... Bg7 {[%clk
0:02:57]} 7. Be3 {[%clk 0:03:04.1]} 7... c5 {[%clk 0:02:56.9]} 8. Rc1 {[%clk
0:03:04.4]} 8... Qa5 {[%clk 0:02:56.7]} 9. Qd2 {[%clk 0:03:04.5]} 9... O-O
{[%clk 0:02:56.7]} 10. Nf3 {[%clk 0:02:59.5]} 10... Rd8 {[%clk 0:02:56.3]} 11.
d5 {[%clk 0:02:52.3]} 11... e6 {[%clk 0:02:55.4]} 12. Be2 {[%clk 0:02:45.5]}
12... b6 {[%clk 0:02:31.4]} 13. O-O {[%clk 0:02:33.2]} 13... Ba6 {[%clk
0:02:29.8]} 14. c4 {[%clk 0:02:18.4]} 14... Nc6 {[%clk 0:02:24]} 15. Bg5 {[%clk
0:02:07.4]} 15... f6 {[%clk 0:02:16.3]} 16. Bh4 {[%clk 0:01:59.2]} 16... Qxd2
{[%clk 0:02:11.7]} 17. Nxd2 {[%clk 0:01:57.7]} 17... Nd4 {[%clk 0:02:10.6]} 18.
Rfe1 {[%clk 0:01:48.5]} 18... exd5 {[%clk 0:02:02.1]} 19. exd5 {[%clk
0:01:47.4]} 19... Nxe2+ {[%clk 0:01:58.9]} 20. Rxe2 {[%clk 0:01:46.9]} 20...
Rxd5 {[%clk 0:01:58.6]} 21. Ne4 {[%clk 0:01:02.8]} 21... Re5 {[%clk 0:01:37.2]}
22. f4 {[%clk 0:00:37.3]} 22... Re6 {[%clk 0:01:10]} 23. Kf2 {[%clk 0:00:36.1]}
23... f5 {[%clk 0:01:00.5]} 24. Nf6+ {[%clk 0:00:30.9]} 24... Rxf6 {[%clk
0:00:52.9]} 25. Bxf6 {[%clk 0:00:29.8]} 25... Bxf6 {[%clk 0:00:53.8]} 26. g3
{[%clk 0:00:24.7]} 26... Bd4+ {[%clk 0:00:49.7]} 27. Ke1 {[%clk 0:00:23]} 27...
Kf7 {[%clk 0:00:48.1]} 28. a4 {[%clk 0:00:22.5]} 28... Re8 {[%clk 0:00:46.7]}
29. Rxe8 {[%clk 0:00:22.3]} 29... Kxe8 {[%clk 0:00:47.6]} 30. Kd2 {[%clk
0:00:22.6]} 30... Bb7 {[%clk 0:00:45.1]} 31. Rc2 {[%clk 0:00:19.6]} 31... Be4
{[%clk 0:00:44.1]} 32. Ra2 {[%clk 0:00:19.3]} 32... Kd7 {[%clk 0:00:44]} 33. a5
{[%clk 0:00:18.8]} 33... Kc7 {[%clk 0:00:35.8]} 34. axb6+ {[%clk 0:00:18.7]}
34... Kxb6 {[%clk 0:00:35.8]} 35. Kd1 {[%clk 0:00:16.1]} 35... Bc3 {[%clk
0:00:32.6]} 36. Rf2 {[%clk 0:00:12.8]} 36... a5 {[%clk 0:00:31.4]} 37. Kc1
{[%clk 0:00:11.7]} 37... a4 {[%clk 0:00:30.5]} 38. Ra2 {[%clk 0:00:10.2]} 38...
Ka5 {[%clk 0:00:30.2]} 39. h3 {[%clk 0:00:10]} 39... Kb4 {[%clk 0:00:29.7]} 40.
g4 {[%clk 0:00:09]} 40... a3 {[%clk 0:00:28.2]} 41. gxf5 {[%clk 0:00:08.6]}
41... gxf5 {[%clk 0:00:27.5]} 42. h4 {[%clk 0:00:08]} 42... Bb2+ {[%clk
0:00:27.2]} 43. Rxb2+ {[%clk 0:00:02.7]} 0-1

[Event "*** Titled Tuesday Blitz"]
[Site "Chess.com"]
[Date "2020.04.28"]
[Round "4"]
[White "suneebaker"]
[Black "IngOscarArdila"]
[Result "1-0"]
[WhiteElo "2241"]
[BlackElo "2033"]
[TimeControl "180+1"]
[EndTime "10:40:39 PDT"]
[Termination "suneebaker won by resignation"]

1. d4 {[%clk 0:03:00.9]} 1... Nf6 {[%clk 0:02:55.5]} 2. Nf3 {[%clk 0:03:01.3]}
2... g6 {[%clk 0:02:55.2]} 3. g3 {[%clk 0:03:01.3]} 3... Bg7 {[%clk 0:02:55.5]}
4. Bg2 {[%clk 0:03:01.9]} 4... O-O {[%clk 0:02:55.5]} 5. O-O {[%clk 0:03:02.4]}
5... d6 {[%clk 0:02:56]} 6. c4 {[%clk 0:03:02.7]} 6... Nbd7 {[%clk 0:02:56.5]}
7. Nc3 {[%clk 0:03:02.5]} 7... e5 {[%clk 0:02:56.1]} 8. e4 {[%clk 0:03:01.9]}
8... exd4 {[%clk 0:02:56.2]} 9. Nxd4 {[%clk 0:03:01.8]} 9... Re8 {[%clk
0:02:56.8]} 10. Re1 {[%clk 0:03:01.4]} 10... Nc5 {[%clk 0:02:57.3]} 11. h3
{[%clk 0:02:57.8]} 11... a5 {[%clk 0:02:57]} 12. Bf4 {[%clk 0:02:52.7]} 12...
Nh5 {[%clk 0:02:56.2]} 13. Be3 {[%clk 0:02:50]} 13... Nf6 {[%clk 0:02:55.2]} 14.
Qc2 {[%clk 0:02:32.5]} 14... Bd7 {[%clk 0:02:44.4]} 15. Rad1 {[%clk 0:02:30.4]}
15... a4 {[%clk 0:02:37.5]} 16. a3 {[%clk 0:02:19.2]} 16... h6 {[%clk
0:02:28.3]} 17. Nde2 {[%clk 0:02:09.8]} 17... Nb3 {[%clk 0:02:20.6]} 18. Nf4
{[%clk 0:02:00.8]} 18... Bc6 {[%clk 0:02:18.2]} 19. Nfd5 {[%clk 0:01:55.5]}
19... Qc8 {[%clk 0:01:48.5]} 20. Nb5 {[%clk 0:01:46.4]} 20... Nxd5 {[%clk
0:01:44.1]} 21. exd5 {[%clk 0:01:43.6]} 21... Bd7 {[%clk 0:01:41.4]} 22. Kh2
{[%clk 0:01:42.5]} 22... Bf5 {[%clk 0:01:40.5]} 23. Qe2 {[%clk 0:01:36.4]} 23...
h5 {[%clk 0:01:32.1]} 24. Qf1 {[%clk 0:01:18.7]} 24... Qd7 {[%clk 0:01:29.5]}
25. Nd4 {[%clk 0:01:06.6]} 25... Re7 {[%clk 0:01:11.8]} 26. Nxf5 {[%clk
0:01:01.4]} 26... Qxf5 {[%clk 0:01:11.7]} 27. Bf4 {[%clk 0:00:51]} 27... Rae8
{[%clk 0:01:09]} 28. Rxe7 {[%clk 0:00:50.3]} 28... Rxe7 {[%clk 0:01:09.9]} 29.
Re1 {[%clk 0:00:48.6]} 29... Rxe1 {[%clk 0:00:55.6]} 30. Qxe1 {[%clk 0:00:48.2]}
30... Bxb2 {[%clk 0:00:56.1]} 31. Qe7 {[%clk 0:00:39.1]} 31... Bxa3 {[%clk
0:00:28.8]} 32. Qxc7 {[%clk 0:00:35.8]} 32... Bc5 {[%clk 0:00:17.6]} 33. Qxb7
{[%clk 0:00:31.8]} 33... Qc2 {[%clk 0:00:16]} 34. Qe7 {[%clk 0:00:20.3]} 34...
Qxf2 {[%clk 0:00:15.5]} 35. h4 {[%clk 0:00:16.3]} 35... Qg1+ {[%clk 0:00:15]}
36. Kh3 {[%clk 0:00:16.2]} 36... Qd1 {[%clk 0:00:11]} 37. Bh6 {[%clk 0:00:15.5]}
37... Qg4+ {[%clk 0:00:10.1]} 38. Kh2 {[%clk 0:00:15.4]} 38... Bg1+ {[%clk
0:00:08.4]} 39. Kxg1 {[%clk 0:00:14.4]} 39... Kh7 {[%clk 0:00:08.9]} 40. Qf8
{[%clk 0:00:13.7]} 40... Qd1+ {[%clk 0:00:08.7]} 41. Kh2 {[%clk 0:00:13.1]} 1-0

[Event "*** Titled Tuesday Blitz"]
[Site "Chess.com"]
[Date "2020.04.28"]
[Round "4"]
[White "Hangar-18"]
[Black "yamalchess"]
[Result "0-1"]
[WhiteElo "2272"]
[BlackElo "2587"]
[TimeControl "180+1"]
[EndTime "10:40:40 PDT"]
[Termination "yamalchess won by checkmate"]

1. Nf3 {[%clk 0:03:00]} 1... f5 {[%clk 0:02:58.7]} 2. d4 {[%clk 0:02:50]} 2...
Nf6 {[%clk 0:02:57.9]} 3. g3 {[%clk 0:02:45.3]} 3... g6 {[%clk 0:02:57.9]} 4.
Bg2 {[%clk 0:02:45.9]} 4... Bg7 {[%clk 0:02:58.4]} 5. O-O {[%clk 0:02:45]} 5...
O-O {[%clk 0:02:58.8]} 6. b3 {[%clk 0:02:44.7]} 6... Nc6 {[%clk 0:02:57.2]} 7.
Bb2 {[%clk 0:02:45.2]} 7... d5 {[%clk 0:02:56.9]} 8. Ne5 {[%clk 0:02:37.4]} 8...
Nxe5 {[%clk 0:02:39.5]} 9. dxe5 {[%clk 0:02:38.3]} 9... Ne4 {[%clk 0:02:36.3]}
10. Nd2 {[%clk 0:02:20.2]} 10... c6 {[%clk 0:02:35.3]} 11. e3 {[%clk 0:01:48.9]}
11... b6 {[%clk 0:02:27.1]} 12. f3 {[%clk 0:01:38]} 12... Nxd2 {[%clk
0:02:25.9]} 13. Qxd2 {[%clk 0:01:38.9]} 13... Bb7 {[%clk 0:02:24.5]} 14. Rad1
{[%clk 0:01:36.8]} 14... c5 {[%clk 0:02:23.2]} 15. c4 {[%clk 0:01:31]} 15...
dxc4 {[%clk 0:02:19.8]} 16. Qc3 {[%clk 0:01:31.4]} 16... Qc7 {[%clk 0:02:12.4]}
17. Qxc4+ {[%clk 0:01:31.6]} 17... Kh8 {[%clk 0:02:12]} 18. f4 {[%clk
0:01:19.7]} 18... Bxg2 {[%clk 0:02:11.1]} 19. Kxg2 {[%clk 0:01:20.6]} 19... Rad8
{[%clk 0:02:10.9]} 20. Qe6 {[%clk 0:01:03.6]} 20... Qb7+ {[%clk 0:02:04.8]} 21.
Kh3 {[%clk 0:01:03.3]} 21... Rxd1 {[%clk 0:01:41.5]} 22. Rxd1 {[%clk 0:01:04.2]}
22... Qf3 {[%clk 0:01:41.1]} 23. Rd2 {[%clk 0:00:38.7]} 23... Qf1+ {[%clk
0:01:37.1]} 24. Kh4 {[%clk 0:00:25.7]} 24... Qf3 {[%clk 0:01:18]} 25. Kh3 {[%clk
0:00:23.1]} 25... Qxe3 {[%clk 0:01:15.9]} 26. Rd7 {[%clk 0:00:22.9]} 26... Qe2
{[%clk 0:01:02]} 27. Qxe7 {[%clk 0:00:22.8]} 27... Rg8 {[%clk 0:00:41.6]} 28.
Rd8 {[%clk 0:00:19.4]} 28... h6 {[%clk 0:00:33.9]} 29. Bc3 {[%clk 0:00:05]}
29... Qf1+ {[%clk 0:00:31]} 30. Kh4 {[%clk 0:00:05]} 30... Qf3 {[%clk
0:00:30.9]} 31. Kh3 {[%clk 0:00:04.8]} 31... Qxc3 {[%clk 0:00:28.6]} 32. Rxg8+
{[%clk 0:00:05.4]} 32... Kxg8 {[%clk 0:00:28]} 33. Qe8+ {[%clk 0:00:04.6]} 33...
Kh7 {[%clk 0:00:27.4]} 34. e6 {[%clk 0:00:05.5]} 34... Qf3 {[%clk 0:00:25.5]}
35. e7 {[%clk 0:00:05.1]} 35... Qf1+ {[%clk 0:00:25.3]} 36. Kh4 {[%clk 0:00:05]}
36... Bf6# {[%clk 0:00:25.8]} 0-1

[Event "*** Titled Tuesday Blitz"]
[Site "Chess.com"]
[Date "2020.04.28"]
[Round "4"]
[White "Sweafty"]
[Black "Gajuchess"]
[Result "0-1"]
[WhiteElo "2460"]
[BlackElo "2748"]
[TimeControl "180+1"]
[EndTime "10:40:40 PDT"]
[Termination "Gajuchess won by resignation"]

1. Nf3 {[%clk 0:03:00.9]} 1... d5 {[%clk 0:02:58.1]} 2. c4 {[%clk 0:03:01]} 2...
d4 {[%clk 0:02:58.1]} 3. b4 {[%clk 0:03:00.9]} 3... g6 {[%clk 0:02:55.3]} 4. Bb2
{[%clk 0:02:45.2]} 4... Bh6 {[%clk 0:02:55.5]} 5. Nxd4 {[%clk 0:02:28.2]} 5...
Nf6 {[%clk 0:02:54]} 6. g3 {[%clk 0:02:25.7]} 6... O-O {[%clk 0:02:47.9]} 7. Bg2
{[%clk 0:02:24.3]} 7... e5 {[%clk 0:02:48.2]} 8. Nb3 {[%clk 0:02:23.2]} 8... e4
{[%clk 0:02:42.7]} 9. O-O {[%clk 0:02:15.6]} 9... Re8 {[%clk 0:02:41.7]} 10. Nc3
{[%clk 0:01:56.1]} 10... Nc6 {[%clk 0:02:36.9]} 11. a3 {[%clk 0:01:54]} 11...
Bf5 {[%clk 0:02:31.4]} 12. Nb5 {[%clk 0:00:58.3]} 12... Ne5 {[%clk 0:02:22.5]}
13. Rc1 {[%clk 0:00:52.1]} 13... Bg4 {[%clk 0:02:18]} 14. h3 {[%clk 0:00:45.7]}
14... Bh5 {[%clk 0:02:18.2]} 15. g4 {[%clk 0:00:30.8]} 15... Bxg4 {[%clk
0:01:55.8]} 16. hxg4 {[%clk 0:00:31.7]} 16... Nfxg4 {[%clk 0:01:56.3]} 17. f3
{[%clk 0:00:31.6]} 17... Ne3 {[%clk 0:01:24.3]} 18. dxe3 {[%clk 0:00:23.4]}
18... Bxe3+ {[%clk 0:01:25.2]} 19. Rf2 {[%clk 0:00:20.2]} 19... Qh4 {[%clk
0:01:24.6]} 20. Qf1 {[%clk 0:00:16.9]} 20... exf3 {[%clk 0:01:24.7]} 21. exf3
{[%clk 0:00:15.4]} 21... Rad8 {[%clk 0:01:12.7]} 22. Re1 {[%clk 0:00:14.8]}
22... Bxf2+ {[%clk 0:01:12.4]} 23. Qxf2 {[%clk 0:00:15.4]} 23... Qxf2+ {[%clk
0:01:12.7]} 24. Kxf2 {[%clk 0:00:16.3]} 24... Nd3+ {[%clk 0:01:13.2]} 25. Kg3
{[%clk 0:00:13.9]} 25... Rxe1 {[%clk 0:01:13.2]} 26. Bf6 {[%clk 0:00:14.1]}
26... Rd7 {[%clk 0:01:09.8]} 27. Nxa7 {[%clk 0:00:09.3]} 27... Rd6 {[%clk
0:00:49.5]} 28. Bc3 {[%clk 0:00:07]} 28... Rb1 {[%clk 0:00:49.4]} 29. Nc5 {[%clk
0:00:06.6]} 29... Nxc5 {[%clk 0:00:43.5]} 30. bxc5 {[%clk 0:00:07.5]} 30... Rd3
{[%clk 0:00:43.1]} 31. Bb4 {[%clk 0:00:07.5]} 31... Rd4 {[%clk 0:00:31.8]} 32.
c6 {[%clk 0:00:07.7]} 32... bxc6 {[%clk 0:00:30.4]} 33. Nxc6 {[%clk 0:00:08.6]}
33... Rxc4 {[%clk 0:00:30.8]} 34. Ne7+ {[%clk 0:00:09.2]} 34... Kg7 {[%clk
0:00:30.6]} 35. Nd5 {[%clk 0:00:09.8]} 35... Rb3 {[%clk 0:00:29.9]} 36. Bf1
{[%clk 0:00:09]} 36... Rc2 {[%clk 0:00:29]} 37. Bb5 {[%clk 0:00:08.6]} 37... c5
{[%clk 0:00:28.6]} 38. Ba4 {[%clk 0:00:08.7]} 38... cxb4 {[%clk 0:00:25.9]} 39.
Bxb3 {[%clk 0:00:09.3]} 39... bxa3 {[%clk 0:00:26.2]} 40. Bxc2 {[%clk
0:00:03.6]} 40... a2 {[%clk 0:00:26.1]} 41. Ne3 {[%clk 0:00:02.3]} 41... a1=Q
{[%clk 0:00:26]} 42. Be4 {[%clk 0:00:03.2]} 42... Qg1+ {[%clk 0:00:25]} 43. Ng2
{[%clk 0:00:03]} 43... f5 {[%clk 0:00:25.6]} 0-1

[Event "*** Titled Tuesday Blitz"]
[Site "Chess.com"]
[Date "2020.04.28"]
[Round "4"]
[White "BvsN"]
[Black "NFork"]
[Result "1-0"]
[WhiteElo "2372"]
[BlackElo "1915"]
[TimeControl "180+1"]
[EndTime "10:40:40 PDT"]
[Termination "BvsN won on time"]

1. d4 {[%clk 0:03:00.9]} 1... d5 {[%clk 0:02:59.1]} 2. c4 {[%clk 0:03:01]} 2...
dxc4 {[%clk 0:02:59.2]} 3. Nf3 {[%clk 0:03:00.9]} 3... Nf6 {[%clk 0:02:58.6]} 4.
e3 {[%clk 0:03:01.3]} 4... a6 {[%clk 0:02:56.5]} 5. Bxc4 {[%clk 0:03:00.8]} 5...
b5 {[%clk 0:02:56.4]} 6. Bb3 {[%clk 0:02:59.5]} 6... Bb7 {[%clk 0:02:56.6]} 7.
Qe2 {[%clk 0:02:59.1]} 7... e6 {[%clk 0:02:55.5]} 8. O-O {[%clk 0:02:56.8]} 8...
Nbd7 {[%clk 0:02:55.2]} 9. a4 {[%clk 0:02:54.3]} 9... c5 {[%clk 0:02:50.5]} 10.
axb5 {[%clk 0:02:52.9]} 10... axb5 {[%clk 0:02:49.7]} 11. Rxa8 {[%clk
0:02:52.8]} 11... Qxa8 {[%clk 0:02:49.2]} 12. dxc5 {[%clk 0:02:48.8]} 12... Bxc5
{[%clk 0:02:37.6]} 13. Nbd2 {[%clk 0:02:44.4]} 13... O-O {[%clk 0:02:31.9]} 14.
Re1 {[%clk 0:02:31]} 14... Bc6 {[%clk 0:02:17.5]} 15. h3 {[%clk 0:02:27.7]}
15... Rd8 {[%clk 0:02:05.5]} 16. e4 {[%clk 0:02:27.1]} 16... Qa7 {[%clk
0:02:00.8]} 17. e5 {[%clk 0:02:21.6]} 17... Nd5 {[%clk 0:01:51.9]} 18. Ne4
{[%clk 0:02:18.5]} 18... Bb4 {[%clk 0:01:47.8]} 19. Rd1 {[%clk 0:02:12.8]} 19...
Qc7 {[%clk 0:01:35.7]} 20. Ng3 {[%clk 0:01:44.1]} 20... Nc5 {[%clk 0:01:34.1]}
21. Bc2 {[%clk 0:01:33.5]} 21... Ba5 {[%clk 0:01:33.8]} 22. Bb1 {[%clk
0:01:03.5]} 22... Bb6 {[%clk 0:00:27.5]} 23. Bg5 {[%clk 0:00:57.7]} 23... Ne7
{[%clk 0:00:19.5]} 24. Rxd8+ {[%clk 0:00:50.4]} 24... Qxd8 {[%clk 0:00:19.3]}
25. Qc2 {[%clk 0:00:49.8]} 25... g6 {[%clk 0:00:17.2]} 26. Kh2 {[%clk
0:00:16.8]} 26... Qd7 {[%clk 0:00:15.9]} 27. Bf6 {[%clk 0:00:14]} 27... Nd5
{[%clk 0:00:14.4]} 28. Qc1 {[%clk 0:00:13.2]} 28... Nxf6 {[%clk 0:00:12.9]} 29.
exf6 {[%clk 0:00:13.5]} 29... Qd6 {[%clk 0:00:11]} 30. Qh6 {[%clk 0:00:12.6]}
30... Qf8 {[%clk 0:00:11]} 31. Qg5 {[%clk 0:00:12.4]} 31... h6 {[%clk
0:00:09.4]} 32. Qf4 {[%clk 0:00:10]} 32... Na6 {[%clk 0:00:05.7]} 33. Ne5 {[%clk
0:00:09.1]} 33... Bc7 {[%clk 0:00:04.6]} 34. Qe3 {[%clk 0:00:08.3]} 34... Bxe5
{[%clk 0:00:03.5]} 35. Qxe5 {[%clk 0:00:08.5]} 35... Qb8 {[%clk 0:00:02.8]} 36.
Qe3 {[%clk 0:00:07.8]} 1-0